bitfinex/quotes_BTCUSD_20241021
["timestamp","ask_amount","ask_price","bid_price","bid_amount"]
[1729528249032,0.002,67036.0,67035.0,0.52886356]
[1729528249256,0.001,67036.0,67035.0,0.52886356]
[1729528249719,0.002,67036.0,67035.0,0.53886356]
[1729528249962,0.22256018,67047.0,67046.0,0.325851]
[1729528250188,0.22256018,67047.0,67046.0,0.47981015]
[1729528250426,0.22256018,67057.0,67056.0,0.081]
[1729528250888,0.01256424,67057.0,67056.0,0.081]
[1729528251099,0.00165,67060.0,67056.0,0.081]
[1729528251327,0.00165,67060.0,67057.0,0.391849]
[1729528251542,0.01256424,67059.0,67058.0,0.149124]
[1729528251801,0.00165,67060.0,67057.0,0.242726]
[1729528252008,0.00165,67060.0,67057.0,0.0936]
[1729528252227,0.01256424,67059.0,67057.0,0.0936]
[1729528252677,0.00165,67060.0,67057.0,0.0946]
[1729528252904,0.01256424,67058.0,67057.0,0.0946]
[1729528253131,0.00165,67060.0,67057.0,0.0946]
[1729528253354,0.00165,67060.0,67057.0,0.0936]
[1729528253571,0.01256424,67059.0,67057.0,0.0936]
[1729528253780,0.00165,67060.0,67057.0,0.1016]
[1729528254276,0.01256424,67058.0,67057.0,0.1016]
[1729528254547,0.00165,67060.0,67057.0,0.008]
[1729528254548,0.149123,67059.0,67057.0,0.008]
[1729528254775,0.00165,67060.0,67057.0,0.018]
[1729528254991,0.00165,67060.0,67057.0,0.01]
[1729528254992,0.01269892,67058.0,67057.0,0.01]
[1729528255209,0.149122,67059.0,67057.0,0.01]
[1729528255419,0.00165,67060.0,67057.0,0.01]
[1729528255420,0.01282693,67058.0,67057.0,0.019]
[1729528255636,0.15077,67060.0,67057.0,0.009]
[1729528255845,0.01282693,67058.0,67057.0,0.011]
[1729528256071,0.00165,67060.0,67057.0,0.011]
[1729528256317,0.00165,67060.0,67057.0,0.021]
[1729528256551,0.01282693,67059.0,67057.0,0.021]
[1729528256798,0.01282693,67059.0,67057.0,0.01]
[1729528258498,0.01282693,67059.0,67051.0,0.0774]
[1729528258735,0.01282693,67059.0,67057.0,0.019]
[1729528258973,0.01282693,67059.0,67057.0,0.007]
[1729528259215,0.01282693,67059.0,67057.0,0.011]
[1729528259450,0.01282693,67059.0,67051.0,0.0774]
[1729528259676,0.01282693,67059.0,67057.0,0.008]
[1729528260400,0.01282693,67059.0,67057.0,0.019]
[1729528260638,0.00165,67060.0,67057.0,0.019]
[1729528260937,0.00165,67059.0,67057.0,0.019]
[1729528261175,0.01447693,67059.0,67057.0,0.019]
[1729528261440,0.00165,67059.0,67057.0,0.019]
[1729528261699,0.01282693,67058.0,67051.0,0.0774]
[1729528261922,0.00165,67059.0,67052.0,0.22256018]
[1729528262155,0.00165,67059.0,67057.0,0.01]
[1729528262381,0.00165,67059.0,67057.0,0.04816972]
[1729528262619,0.00165,67059.0,67058.0,0.47748315]
[1729528262851,0.00165,67059.0,67058.0,0.51048315]
[1729528263980,0.00165,67059.0,67058.0,1.21048315]
[1729528264931,0.00165,67059.0,67058.0,1.23048315]
[1729528265166,0.00165,67059.0,67058.0,1.21948315]
[1729528265393,0.00165,67059.0,67058.0,0.52448315]
[1729528265655,0.02301638,67069.0,67068.0,0.246802]
[1729528265983,0.22256018,67079.0,67078.0,0.17708]
[1729528266182,0.22256018,67079.0,67078.0,0.55186345]
[1729528266409,0.22256018,67086.0,67085.0,0.154064]
[1729528266636,0.22256018,67086.0,67085.0,0.30302315]
[1729528266869,0.00165,67089.0,67088.0,0.149057]
[1729528267093,0.00165,67089.0,67087.0,0.149059]
[1729528267340,0.00165,67089.0,67088.0,0.149057]
[1729528267837,0.00165,67089.0,67078.0,0.1312243]
[1729528268064,0.00165,67089.0,67082.0,0.22256018]
[1729528268516,0.00165,67089.0,67079.0,0.998155]
[1729528268517,0.00165,67089.0,67079.0,0.998152]
[1729528268752,0.00165,67089.0,67088.0,0.018]
[1729528268985,0.00165,67089.0,67088.0,0.008]
[1729528269209,0.00165,67089.0,67083.0,0.149068]
[1729528269454,0.00165,67089.0,67084.0,0.37162618]
[1729528269676,0.00165,67089.0,67081.0,0.298145]
[1729528269677,0.00165,67089.0,67082.0,0.15707]
[1729528269909,0.00165,67089.0,67083.0,0.149067]
[1729528270350,0.00165,67089.0,67082.0,0.008]
[1729528270562,0.00165,67089.0,67084.0,0.149066]
[1729528271033,0.00165,67089.0,67082.0,0.149069]
[1729528271225,0.00165,67089.0,67083.0,0.018]
[1729528271650,0.00165,67089.0,67081.0,0.298145]
[1729528271865,0.00165,67089.0,67084.0,0.152066]
[1729528272083,0.00165,67089.0,67084.0,0.150066]
[1729528272622,0.00165,67089.0,67083.0,0.008]
[1729528272623,0.298115,67088.0,67083.0,0.008]
[1729528272846,0.149062,67086.0,67083.0,0.008]
[1729528273063,0.149061,67087.0,67083.0,0.008]
[1729528273277,0.00165,67089.0,67083.0,0.008]
[1729528273709,0.149057,67088.0,67083.0,0.008]
[1729528273921,0.00165,67089.0,67083.0,0.008]
[1729528274136,0.00165,67089.0,67084.0,0.156066]
[1729528274373,0.00165,67089.0,67084.0,0.007]
[1729528274801,0.00165,67089.0,67082.0,0.14907]
[1729528275017,0.00165,67089.0,67087.0,0.149058]
[1729528275240,0.00165,67089.0,67085.0,0.298129]
[1729528275458,0.00165,67089.0,67085.0,0.447192]
[1729528275700,0.00165,67089.0,67086.0,0.149061]
[1729528276197,0.00165,67089.0,67083.0,0.149067]
[1729528276642,0.16014262,67088.0,67079.0,0.149075]
[1729528276871,0.16014262,67088.0,67081.0,0.298146]
[1729528276872,0.01108362,67088.0,67081.0,0.298146]
[1729528277086,0.01108362,67088.0,67080.0,0.22256018]
[1729528277299,0.01108362,67088.0,67081.0,0.149072]
[1729528277524,0.01108362,67088.0,67080.0,0.22256018]
[1729528277525,0.01108362,67088.0,67080.0,0.3446314]
[1729528277744,0.01108362,67088.0,67076.0,0.303166]
[1729528277961,0.01108362,67088.0,67078.0,0.29816]
[1729528278182,0.01108362,67088.0,67083.0,0.149068]
[1729528278401,0.01107401,67087.0,67083.0,0.149068]
[1729528278626,0.01107401,67087.0,67080.0,0.298151]
[1729528278851,0.150706,67089.0,67080.0,0.149074]
[1729528279074,0.01107401,67086.0,67077.0,0.7]
[1729528279291,0.149064,67085.0,67078.0,0.22256018]
[1729528279540,0.16013801,67085.0,67078.0,0.22256018]
[1729528279784,0.149067,67084.0,67077.0,0.7]
[1729528280081,0.01107401,67085.0,67077.0,0.7]
[1729528280301,0.01107401,67085.0,67067.0,0.149104]
[1729528280302,0.14908,67078.0,67067.0,0.149104]
[1729528280511,0.14908,67078.0,67074.0,0.22256018]
[1729528280733,0.298157,67079.0,67065.0,0.849108]
[1729528280734,0.149085,67076.0,67065.0,0.849108]
[1729528280960,0.01107401,67077.0,67069.0,0.22256018]
[1729528281170,0.149082,67077.0,67066.0,0.15395915]
[1729528281405,0.298157,67079.0,67067.0,0.37966418]
[1729528281631,0.149082,67078.0,67067.0,1.07966418]
[1729528281848,0.01094932,67078.0,67067.0,1.22076818]
[1729528282072,0.298133,67084.0,67067.0,0.92256018]
[1729528282297,0.44709915,67083.0,67071.0,0.149095]
[1729528282524,0.447213,67082.0,67071.0,0.149095]
[1729528282767,0.149074,67081.0,67071.0,0.149095]
[1729528282992,0.15989907,67083.0,67072.0,0.149092]
[1729528282993,0.149069,67083.0,67072.0,0.149092]
[1729528283222,0.298124,67086.0,67068.0,0.298203]
[1729528283223,0.149078,67079.0,67068.0,0.298203]
[1729528283461,0.298124,67086.0,67069.0,0.7]
[1729528283462,0.0109417,67082.0,67069.0,0.7]
[1729528283694,0.29814,67083.0,67071.0,0.149095]
[1729528283695,0.149075,67081.0,67071.0,0.149095]
[1729528283918,0.0109417,67081.0,67072.0,0.149091]
[1729528284372,0.298124,67086.0,67072.0,0.003]
[1729528284604,0.0109417,67080.0,67073.0,0.14909]
[1729528284822,0.149069,67083.0,67072.0,0.149093]
[1729528285048,0.298124,67086.0,67071.0,0.005]
[1729528285281,0.0109417,67082.0,67071.0,0.706]
[1729528285516,0.29813,67085.0,67071.0,0.701]
[1729528285750,0.0109417,67081.0,67071.0,0.79911011]
[1729528285986,0.298124,67086.0,67071.0,0.09911011]
[1729528286229,0.149068,67084.0,67073.0,0.149091]
[1729528286502,0.0109417,67085.0,67072.0,0.001]
[1729528286734,0.00165,67088.0,67074.0,0.22256018]
[1729528286967,0.0109417,67084.0,67076.0,0.149084]
[1729528287196,0.22256018,67087.0,67077.0,0.14895915]
[1729528287424,0.22256018,67087.0,67079.0,0.298155]
[1729528287685,0.00165,67088.0,67080.0,0.149074]
[1729528287907,0.22256018,67087.0,67075.0,0.1676]
[1729528288150,0.16002,67087.0,67084.0,0.01]
[1729528288374,0.149062,67086.0,67084.0,0.01]
[1729528289067,0.01096,67085.0,67084.0,0.01]
[1729528290016,0.160024,67085.0,67084.0,0.01]
[1729528290956,0.160024,67085.0,67084.0,0.011]
[1729528292122,0.01096,67085.0,67084.0,0.011]
[1729528292382,0.160024,67085.0,67084.0,0.011]
[1729528292606,0.149064,67085.0,67084.0,0.011]
[1729528292801,0.16003291,67085.0,67084.0,0.011]
[1729528294241,0.01096891,67085.0,67084.0,0.011]
[1729528294466,0.16003291,67085.0,67084.0,0.011]
[1729528296506,0.05748332,67085.0,67084.0,0.011]
[1729528296844,0.20654732,67085.0,67084.0,0.011]
[1729528297687,0.05748332,67085.0,67084.0,0.011]
[1729528297897,0.20654732,67085.0,67084.0,0.006]
[1729528298324,0.16168291,67085.0,67084.0,0.006]
[1729528298547,0.20822572,67085.0,67084.0,0.001]
[1729528299226,0.05916172,67085.0,67084.0,0.001]
[1729528299436,0.01261891,67085.0,67084.0,0.001]
[1729528299883,0.01261891,67085.0,67079.0,0.298152]
[1729528300123,0.00165,67085.0,67080.0,0.7]
[1729528300341,0.00165,67085.0,67080.0,0.849074]
[1729528300807,0.00165,67085.0,67080.0,0.7]
[1729528301041,0.00165,67085.0,67081.0,0.03110913]
[1729528301263,0.00165,67085.0,67080.0,0.849074]
[1729528301492,0.00165,67085.0,67081.0,0.7]
[1729528301709,0.01096891,67084.0,67081.0,0.7]
[1729528303273,0.01096891,67084.0,67081.0,1.078245]
[1729528303490,0.01096891,67084.0,67081.0,0.7801]
[1729528303674,0.00165,67085.0,67081.0,0.7801]
[1729528304141,0.01100302,67084.0,67081.0,0.7801]
[1729528304557,0.01100302,67084.0,67081.0,0.929172]
[1729528304773,0.01100302,67084.0,67081.0,0.7801]
[1729528304985,0.00165,67085.0,67082.0,0.14907]
[1729528305209,0.00165,67085.0,67081.0,0.929172]
[1729528306737,0.149005,67089.0,67081.0,0.929172]
[1729528307006,0.1,67091.0,67082.0,0.298142]
[1729528307247,0.01104225,67088.0,67083.0,0.7]
[1729528307474,0.149054,67090.0,67083.0,0.7]
[1729528307707,0.16010774,67087.0,67083.0,0.7]
[1729528307917,0.149059,67088.0,67083.0,0.7]
[1729528308129,0.01104788,67086.0,67083.0,0.7]
[1729528308337,0.149059,67088.0,67083.0,0.7]
[1729528308771,0.01104788,67087.0,67083.0,0.7]
[1729528309639,0.298124,67086.0,67083.0,0.001]
[1729528309839,0.149066,67084.0,67083.0,0.001]
[1729528310053,0.19565531,67084.0,67083.0,0.002]
[1729528310485,0.149073,67081.0,67076.0,0.7]
[1729528310714,0.149072,67082.0,67078.0,0.22256018]
[1729528310905,0.149072,67082.0,67075.0,0.005]
[1729528311117,0.149076,67080.0,67075.0,0.005]
[1729528311324,0.149078,67079.0,67075.0,0.005]
[1729528311777,0.01104788,67078.0,67075.0,0.005]
[1729528312030,0.16012888,67078.0,67075.0,0.005]
[1729528312253,0.149082,67077.0,67075.0,0.005]
[1729528312507,0.16010303,67077.0,67075.0,0.005]
[1729528312727,0.149084,67076.0,67075.0,0.005]
[1729528312944,0.149084,67076.0,67075.0,0.007]
[1729528312945,0.1956809,67076.0,67075.0,0.007]
[1729528313177,0.1956809,67076.0,67075.0,0.008]
[1729528313392,0.20663777,67076.0,67075.0,0.006]
[1729528313604,0.20663777,67076.0,67075.0,0.009]
[1729528314025,0.20663777,67076.0,67075.0,0.01]
[1729528314883,0.35559692,67076.0,67075.0,0.006]
[1729528315108,0.35559692,67076.0,67075.0,0.009]
[1729528315109,0.52769692,67076.0,67075.0,0.009]
[1729528315361,0.52769692,67076.0,67075.0,0.006]
[1729528315591,0.52769692,67076.0,67075.0,0.007]
[1729528315822,0.52769692,67076.0,67075.0,0.006]
[1729528316271,0.52769692,67076.0,67075.0,0.007]
[1729528316491,0.52769692,67076.0,67075.0,0.005]
[1729528316938,0.53569692,67076.0,67075.0,0.006]
[1729528318294,0.45619692,67076.0,67075.0,0.006]
[1729528318576,0.45619692,67076.0,67075.0,0.007]
[1729528321660,0.45119692,67076.0,67075.0,0.002]
[1729528321877,0.35859692,67076.0,67075.0,0.002]
[1729528322547,0.35859692,67076.0,67075.0,0.002825]
[1729528324485,0.16804087,67076.0,67075.0,0.002825]
[1729528325000,0.01895687,67076.0,67075.0,0.002825]
[1729528325470,0.16804087,67076.0,67075.0,0.002825]
[1729528325953,0.01895687,67076.0,67075.0,0.002825]
[1729528327101,0.16804087,67076.0,67075.0,0.002825]
[1729528327987,0.16804087,67076.0,67075.0,0.0107875]
[1729528327988,0.01895687,67076.0,67075.0,0.0107875]
[1729528328240,0.01895687,67076.0,67075.0,0.1598735]
[1729528328444,0.01559548,67076.0,67075.0,0.151911]
[1729528328660,0.008,67076.0,67075.0,0.151911]
[1729528328876,0.008,67076.0,67075.0,0.002825]
[1729528329109,0.149083,67077.0,67075.0,0.001825]
[1729528329357,0.00759548,67076.0,67075.0,0.000825]
[1729528329615,0.01059548,67076.0,67075.0,0.000825]
[1729528329832,0.003,67076.0,67075.0,0.010825]
[1729528330075,0.14907,67083.0,67075.0,0.010825]
[1729528330511,0.00759548,67082.0,67075.0,0.017825]
[1729528330723,0.00759548,67082.0,67079.0,0.22256018]
[1729528330964,0.00759548,67082.0,67076.0,0.1721]
[1729528331452,0.1,67087.0,67078.0,0.7]
[1729528331902,0.00759548,67086.0,67079.0,0.37151933]
[1729528332117,0.00759548,67086.0,67080.0,0.11796443]
[1729528332329,0.250702,67091.0,67080.0,0.81796443]
[1729528332583,0.04650646,67090.0,67080.0,0.81796443]
[1729528332824,0.05410194,67090.0,67080.0,0.81796443]
[1729528333041,0.04650646,67089.0,67080.0,0.81796443]
[1729528333479,0.19556146,67089.0,67080.0,0.81796443]
[1729528333720,0.00759548,67088.0,67080.0,0.81796443]
[1729528333940,0.00759548,67088.0,67080.0,0.7]
[1729528335471,0.00924548,67088.0,67080.0,0.7]
[1729528336127,0.01124548,67088.0,67080.0,0.7]
[1729528336365,0.16030248,67088.0,67080.0,0.7]
[1729528336830,0.01124548,67088.0,67080.0,0.7]
[1729528338178,0.149066,67085.0,67080.0,0.7]
[1729528338429,0.149065,67085.0,67080.0,0.7]
[1729528338656,0.00771674,67084.0,67080.0,0.7]
[1729528340032,0.001,67085.0,67080.0,0.7]
[1729528340508,0.00771674,67084.0,67080.0,0.7]
[1729528340692,0.00771674,67084.0,67080.0,0.7884925]
[1729528340938,0.149062,67086.0,67080.0,0.7884925]
[1729528341151,0.00771674,67083.0,67080.0,0.7884925]
[1729528341365,0.149062,67086.0,67080.0,0.701]
[1729528341591,0.149066,67085.0,67080.0,0.7]
[1729528341808,0.149063,67086.0,67080.0,0.7]
[1729528342040,0.299766,67088.0,67080.0,0.7]
[1729528342041,0.149067,67084.0,67080.0,0.7]
[1729528342251,0.149073,67081.0,67080.0,0.7]
[1729528342692,0.149084,67076.0,67075.0,0.000825]
[1729528342937,0.19559075,67076.0,67075.0,0.000825]
[1729528344968,0.3445499,67076.0,67075.0,0.000825]
[1729528345207,0.4445499,67076.0,67075.0,0.005825]
[1729528345448,0.4445499,67076.0,67075.0,0.008825]
[1729528345902,0.4445499,67076.0,67075.0,0.000825]
[1729528346380,0.4465499,67076.0,67075.0,0.002825]
[1729528346858,0.4465499,67076.0,67075.0,0.001825]
[1729528346859,0.5384499,67076.0,67075.0,0.001825]
[1729528347077,0.5384499,67076.0,67069.0,0.000825]
[1729528347078,0.249097,67070.0,67069.0,0.000825]
[1729528347324,0.5351629,67070.0,67069.0,0.000825]
[1729528347812,0.149142,67050.0,67049.0,0.7]
[1729528348225,0.04650675,67050.0,67036.0,0.080625]
[1729528348456,0.249142,67050.0,67049.0,0.22256018]
[1729528348688,0.249142,67050.0,67042.0,0.22256018]
[1729528348689,0.149154,67045.0,67042.0,0.22256018]
[1729528348915,0.298293,67048.0,67042.0,0.22256018]
[1729528349138,0.149156,67044.0,67042.0,0.22256018]
[1729528349387,0.298298,67047.0,67042.0,0.22256018]
[1729528349606,0.149156,67044.0,67036.0,0.080625]
[1729528349826,0.149156,67044.0,67037.0,0.22256018]
[1729528350313,0.001,67045.0,67037.0,0.22256018]
[1729528350787,0.298298,67047.0,67037.0,0.22256018]
[1729528351018,0.149155,67045.0,67036.0,0.080625]
[1729528351242,0.149154,67045.0,67037.0,0.001]
[1729528351461,0.149154,67045.0,67036.0,0.080625]
[1729528351700,0.298304,67046.0,67036.0,0.080625]
[1729528351701,0.149151,67046.0,67036.0,0.080625]
[1729528351926,0.298293,67048.0,67036.0,0.080625]
[1729528352149,0.1,67051.0,67038.0,0.22256018]
[1729528352396,0.18213471,67060.0,67037.0,0.14895915]
[1729528352397,0.1,67049.0,67037.0,0.14895915]
[1729528352615,0.1,67049.0,67038.0,0.22256018]
[1729528352836,0.149148,67048.0,67038.0,0.22256018]
[1729528353061,0.298293,67048.0,67038.0,0.22256018]
[1729528353322,0.001,67044.0,67038.0,0.22256018]
[1729528353780,0.1,67050.0,67038.0,0.22256018]
[1729528354013,0.1,67050.0,67037.0,0.14895915]
[1729528354014,0.105,67049.0,67037.0,0.14895915]
[1729528354251,0.254144,67049.0,67038.0,0.22256018]
[1729528354478,0.001,67044.0,67038.0,0.22256018]
[1729528354926,0.29827,67054.0,67039.0,0.14895915]
[1729528355146,0.001,67050.0,67040.0,0.0981]
[1729528355362,0.249141,67051.0,67040.0,0.24705915]
[1729528356024,0.149143,67050.0,67040.0,0.24705915]
[1729528356499,0.149146,67049.0,67040.0,0.24705915]
[1729528356712,0.001,67044.0,67040.0,0.24705915]
[1729528356931,0.149145,67049.0,67040.0,0.24705915]
[1729528357220,0.149154,67045.0,67040.0,0.0981]
[1729528357444,0.149156,67044.0,67040.0,0.0981]
[1729528357665,0.298306,67046.0,67040.0,0.0981]
[1729528357666,0.149154,67045.0,67040.0,0.0981]
[1729528357884,0.001,67044.0,67040.0,0.0981]
[1729528358328,0.001,67044.0,67040.0,0.099925]
[1729528359670,0.149137,67052.0,67041.0,0.0758]
[1729528359888,0.14914,67051.0,67041.0,0.0758]
[1729528360356,0.298274,67053.0,67041.0,0.0758]
[1729528360578,0.298253,67057.0,67041.0,0.0758]
[1729528360795,0.005,67052.0,67042.0,0.22256018]
[1729528361039,0.149143,67050.0,67042.0,0.22256018]
[1729528361259,0.151141,67051.0,67042.0,0.22256018]
[1729528361483,0.149141,67051.0,67042.0,0.22256018]
[1729528363049,0.004,67053.0,67042.0,0.22256018]
[1729528363482,0.149138,67052.0,67042.0,0.22256018]
[1729528363756,0.004,67053.0,67042.0,0.22256018]
[1729528363991,0.447422,67051.0,67042.0,0.22256018]
[1729528364227,0.151142,67051.0,67042.0,0.22256018]
[1729528364460,0.003,67051.0,67042.0,0.22256018]
[1729528364924,0.001,67051.0,67042.0,0.22256018]
[1729528366220,0.149136,67053.0,67042.0,0.22256018]
[1729528366451,0.149125,67058.0,67043.0,0.14895915]
[1729528366671,0.447352,67061.0,67044.0,0.0799]
[1729528366902,0.149126,67057.0,67044.0,0.0799]
[1729528367130,0.1,67061.0,67045.0,0.14895915]
[1729528367582,0.007,67058.0,67045.0,0.14895915]
[1729528367818,0.156125,67058.0,67045.0,0.14895915]
[1729528368050,0.002,67051.0,67045.0,0.14895915]
[1729528368492,0.006,67057.0,67045.0,0.14895915]
[1729528369011,0.006,67057.0,67045.0,0.14995915]
[1729528369226,0.149131,67055.0,67045.0,0.14995915]
[1729528369462,0.298262,67055.0,67044.0,0.0799]
[1729528369682,0.149138,67052.0,67045.0,0.001]
[1729528369918,0.14914,67051.0,67045.0,0.002]
[1729528370173,0.29826,67056.0,67046.0,0.22256018]
[1729528370408,0.008,67057.0,67046.0,0.22256018]
[1729528370621,0.004,67055.0,67047.0,0.19422087]
[1729528370847,0.008,67057.0,67047.0,0.14895915]
[1729528371085,0.1,67059.0,67048.0,0.22256018]
[1729528371326,0.149162,67041.0,67040.0,0.000825]
[1729528371576,0.30326018,67056.0,67040.0,0.700825]
[1729528371577,0.14916,67042.0,67040.0,0.700825]
[1729528371840,0.32256018,67052.0,67040.0,0.700825]
[1729528372079,0.149162,67041.0,67040.0,0.700825]
[1729528372328,0.149162,67041.0,67040.0,0.000825]
[1729528373466,0.150162,67041.0,67040.0,0.008825]
[1729528375225,0.151162,67041.0,67040.0,0.014825]
[1729528375901,0.80028133,67041.0,67040.0,0.014825]
[1729528376143,0.80028133,67041.0,67035.0,0.000825]
[1729528376144,0.435171,67037.0,67035.0,0.000825]
[1729528376364,0.63050424,67037.0,67035.0,0.000825]
[1729528377726,0.63750424,67037.0,67036.0,0.001825]
[1729528379478,0.64650424,67037.0,67036.0,0.001825]
[1729528379693,0.63150424,67037.0,67036.0,0.001825]
[1729528379902,0.31154509,67037.0,67036.0,0.001825]
[1729528380331,0.06237409,67037.0,67036.0,0.001825]
[1729528380547,0.016,67037.0,67036.0,0.001825]
[1729528380771,0.116,67037.0,67036.0,0.001825]
[1729528381233,0.016,67037.0,67036.0,0.001825]
[1729528381452,0.007,67037.0,67036.0,0.001825]
[1729528381871,0.016,67037.0,67036.0,0.001825]
[1729528382304,0.007,67037.0,67036.0,0.001825]
[1729528382525,0.001,67037.0,67036.0,0.000825]
[1729528382977,0.005,67037.0,67036.0,0.000825]
[1729528383405,0.001,67037.0,67036.0,0.000825]
[1729528384531,0.149171,67037.0,67036.0,0.000825]
[1729528385170,0.149165,67040.0,67036.0,0.000825]
[1729528385381,0.005,67049.0,67036.0,0.000825]
[1729528385601,0.1,67043.0,67036.0,0.000825]
[1729528385817,0.1,67043.0,67036.0,0.002825]
[1729528386030,0.398317,67043.0,67036.0,0.002825]
[1729528386237,0.149165,67040.0,67036.0,0.000825]
[1729528386448,0.002,67040.0,67036.0,0.000825]
[1729528386662,0.149166,67039.0,67036.0,0.000825]
[1729528386870,0.398317,67043.0,67036.0,0.000825]
[1729528387082,0.005,67043.0,67036.0,0.000825]
[1729528387302,0.154158,67043.0,67036.0,0.000825]
[1729528387522,0.149162,67041.0,67036.0,0.000825]
[1729528387740,0.011,67043.0,67036.0,0.000825]
[1729528388627,0.005,67043.0,67036.0,0.000825]
[1729528388845,0.002,67040.0,67036.0,0.000825]
[1729528389051,0.004,67041.0,67036.0,0.000825]
[1729528389263,0.154142,67050.0,67036.0,0.000825]
[1729528389468,0.001,67043.0,67037.0,0.14895915]
[1729528390139,0.1,67049.0,67037.0,0.14895915]
[1729528390343,0.1,67049.0,67037.0,0.29812915]
[1729528390579,0.1,67049.0,67037.0,0.14895915]
[1729528390792,0.149145,67049.0,67037.0,0.14895915]
[1729528391034,0.1,67049.0,67037.0,0.14895915]
[1729528391268,0.008,67050.0,67037.0,0.14895915]
[1729528391491,0.003,67049.0,67037.0,0.14895915]
[1729528391711,0.103,67049.0,67037.0,0.14895915]
[1729528391980,0.103,67049.0,67037.0,0.15195915]
[1729528392208,0.1,67049.0,67037.0,0.15195915]
[1729528392431,0.1,67049.0,67037.0,0.14895915]
[1729528392680,0.149146,67048.0,67037.0,0.14895915]
[1729528392922,0.1,67049.0,67036.0,0.000825]
[1729528392923,0.22256018,67045.0,67036.0,0.000825]
[1729528393156,0.012,67050.0,67036.0,0.000825]
[1729528393395,0.149158,67043.0,67036.0,0.000825]
[1729528393849,0.149151,67046.0,67036.0,0.000825]
[1729528394093,0.002,67049.0,67037.0,0.32855915]
[1729528394338,0.002,67049.0,67037.0,0.32355915]
[1729528394564,0.149162,67041.0,67037.0,0.0768]
[1729528394843,0.005,67049.0,67036.0,0.000825]
[1729528394844,0.149169,67038.0,67036.0,0.000825]
[1729528395070,0.298328,67041.0,67036.0,0.000825]
[1729528395312,0.149169,67038.0,67036.0,0.000825]
[1729528395558,0.298333,67039.0,67036.0,0.000825]
[1729528395794,0.149171,67037.0,67036.0,0.000825]
[1729528396005,0.298333,67039.0,67036.0,0.000825]
[1729528396231,0.149171,67037.0,67036.0,0.000825]
[1729528396443,0.149171,67037.0,67036.0,0.002825]
[1729528397780,0.149171,67037.0,67036.0,0.004825]
[1729528397781,0.249171,67037.0,67036.0,0.004825]
[1729528397994,0.2966222,67037.0,67036.0,0.006825]
[1729528398215,0.2966222,67037.0,67036.0,0.002825]
[1729528398424,0.2976222,67037.0,67036.0,0.006825]
[1729528398865,0.2966222,67037.0,67036.0,0.000825]
[1729528399104,0.2956222,67037.0,67036.0,0.000825]
[1729528400250,0.2956222,67037.0,67036.0,0.001825]
[1729528401345,0.44958135,67037.0,67036.0,0.001825]
[1729528402004,0.2956222,67037.0,67036.0,0.001825]
[1729528402932,0.54888135,67037.0,67036.0,0.001825]
[1729528403149,0.4721222,67037.0,67036.0,0.001825]
[1729528403384,0.2956222,67037.0,67036.0,0.001825]
[1729528403860,0.2956222,67037.0,67021.0,0.06084399]
[1729528403861,0.2765,67031.0,67021.0,0.06084399]
[1729528404078,0.331424,67013.0,67011.0,0.000844]
[1729528404300,0.149221,67015.0,67011.0,0.000844]
[1729528404524,0.1,67023.0,67011.0,0.000844]
[1729528404758,0.149224,67013.0,67011.0,0.000844]
[1729528404973,0.249224,67013.0,67011.0,0.000844]
[1729528406314,0.249224,67013.0,67012.0,0.001844]
[1729528409696,0.325924,67013.0,67012.0,0.001844]
[1729528410152,0.71244333,67013.0,67012.0,0.001844]
[1729528410373,0.48988315,67013.0,67012.0,0.001844]
[1729528411068,0.47988315,67013.0,67012.0,0.001844]
[1729528411273,0.40318315,67013.0,67012.0,0.001844]
[1729528411498,0.41718315,67013.0,67012.0,0.000844]
[1729528411927,0.267224,67013.0,67012.0,0.000844]
[1729528412137,0.262224,67013.0,67012.0,0.000844]
[1729528412354,0.249224,67013.0,67012.0,0.000844]
[1729528412564,0.267224,67013.0,67012.0,0.000844]
[1729528412995,0.254224,67013.0,67012.0,0.000844]
[1729528413642,0.263224,67013.0,67012.0,0.000844]
[1729528414280,0.298428,67018.0,67012.0,0.000844]
[1729528414281,0.1,67017.0,67012.0,0.000844]
[1729528414498,0.113,67013.0,67012.0,0.000844]
[1729528414706,0.268224,67013.0,67012.0,0.000844]
[1729528415045,0.119,67013.0,67012.0,0.000844]
[1729528415138,0.113,67013.0,67012.0,0.000844]
[1729528415350,0.258224,67013.0,67012.0,0.000844]
[1729528415571,0.263224,67013.0,67012.0,0.000844]
[1729528415795,0.014,67013.0,67012.0,0.000844]
[1729528416014,0.009,67013.0,67012.0,0.000844]
[1729528416702,0.298422,67020.0,67012.0,0.000844]
[1729528416703,0.149215,67018.0,67012.0,0.000844]
[1729528416933,0.22256018,67017.0,67012.0,0.000844]
[1729528417182,0.001,67013.0,67012.0,0.10539883]
[1729528417410,0.001,67013.0,67012.0,0.26162583]
[1729528417641,0.22256018,67039.0,67012.0,0.26162583]
[1729528417642,0.22256018,67025.0,67022.0,0.149203]
[1729528417866,0.22256018,67025.0,67024.0,0.023]
[1729528418329,0.52089418,67039.0,67025.0,0.298396]
[1729528418330,0.22256018,67039.0,67025.0,0.298396]
[1729528418549,0.22256018,67039.0,67027.0,0.023]
[1729528418795,0.37172818,67039.0,67028.0,0.14895915]
[1729528419034,0.22256018,67039.0,67028.0,0.14895915]
[1729528419258,0.149177,67035.0,67028.0,0.14895915]
[1729528419475,0.298362,67033.0,67026.0,0.0756]
[1729528419910,0.1,67036.0,67026.0,0.0756]
[1729528420372,0.398348,67036.0,67026.0,0.0756]